bitfinex/quotes_ETHUSD_20241101
["timestamp","ask_amount","ask_price","bid_price","bid_amount"]
[1730464507486,5.07594015,2528.1,2527.5,3.95645]
[1730464507688,9.03148015,2528.1,2527.6,3.95623]
[1730464508062,5.07594015,2528.1,2527.8,3.95599]
[1730464508284,0.7081,2528.6,2527.8,3.95598]
[1730464508569,3.95455,2528.8,2528.3,7.91035]
[1730464508860,3.95455,2528.8,2527.9,4.03494707]
[1730464508861,3.95483,2528.6,2528.1,4.77581]
[1730464509032,3.95463,2528.7,2528.2,3.95531]
[1730464509248,3.95446,2528.8,2528.3,3.95521]
[1730464509432,0.84932574,2528.9,2528.4,3.95504]
[1730464509632,0.84932574,2528.9,2528.3,3.9551]
[1730464509827,0.84932574,2528.9,2528.1,4.77583]
[1730464509828,3.95471,2528.7,2528.2,3.95535]
[1730464510064,4.43511357,2528.7,2528.2,3.95535]
[1730464510267,4.43511357,2528.7,2528.1,4.77583]
[1730464510423,4.43511357,2528.7,2527.5,0.8296]
[1730464510424,3.95563,2528.1,2527.5,0.8296]
[1730464510624,3.95563,2528.1,2527.3,1.20953243]
[1730464510625,3.95595,2527.9,2527.3,3.95669]
[1730464510850,3.95641,2527.6,2527.1,3.95701]
[1730464511056,3.0,2528.2,2527.5,3.95646]
[1730464511256,3.95568,2528.1,2527.5,3.95646]
[1730464511456,4.66342,2528.3,2527.4,0.07912177]
[1730464511722,3.95553,2528.2,2527.6,0.8296]
[1730464511956,3.95485,2528.6,2527.9,3.95576]
[1730464511957,3.95514,2528.4,2527.9,3.95576]
[1730464512351,3.95507,2528.4,2527.5,3.95638]
[1730464512525,0.7081,2527.9,2526.9,0.7939]
[1730464512841,7.91278,2527.6,2527.1,3.9571]
[1730464513170,7.91278,2527.6,2526.9,0.7939]
[1730464513171,0.7081,2527.9,2527.4,3.95659]
[1730464513458,3.0,2528.1,2527.7,3.95607]
[1730464513627,0.695546,2528.0,2527.7,3.95607]
[1730464513962,0.695546,2528.0,2527.6,3.9563]
[1730464514458,3.9556,2528.1,2527.6,3.9563]
[1730464514934,0.55,2528.3,2527.2,3.95681]
[1730464515134,3.95617,2527.7,2527.2,3.95681]
[1730464515597,3.95633,2527.6,2527.2,3.95681]
[1730464515908,3.95594,2527.9,2527.4,3.95655]
[1730464516079,3.95623,2527.7,2527.2,3.95684]
[1730464516267,3.0,2528.1,2527.6,3.95622]
[1730464516596,6.95555,2528.1,2527.6,3.95622]
[1730464516796,10.9112,2528.1,2527.6,3.95622]
[1730464517003,8.04667,2528.1,2527.6,3.95622]
[1730464517303,3.95573,2528.0,2527.6,3.95622]
[1730464517503,3.95556,2528.1,2527.7,3.95613]
[1730464518465,6.95539,2528.2,2527.7,3.95607]
[1730464518664,6.95539,2528.2,2527.5,4.73796]
[1730464518665,3.95555,2528.1,2527.6,3.95627]
[1730464518967,4.651105,2528.1,2527.6,3.95627]
[1730464519184,3.9561,2527.8,2527.3,3.95667]
[1730464519405,3.95623,2527.7,2527.3,3.95667]
[1730464520100,3.95623,2527.7,2527.2,0.7574]
[1730464520318,3.95604,2527.8,2527.3,3.95677]
[1730464520493,3.95624,2527.7,2527.3,3.95677]
[1730464520682,3.95624,2527.7,2527.2,0.7574]
[1730464520683,3.95635,2527.6,2527.2,4.71433]
[1730464521720,4.802265,2527.8,2527.3,3.9567]
[1730464522115,4.802265,2527.8,2527.2,4.71433]
[1730464522116,4.802265,2527.8,2527.2,4.71427]
[1730464522424,4.802265,2527.8,2526.9,0.8238]
[1730464522425,3.95634,2527.6,2526.9,0.8238]
[1730464522585,0.4802265,2527.7,2526.9,0.8238]
[1730464522782,3.95603,2527.8,2527.4,3.95661]
[1730464522997,0.695555,2528.1,2527.7,3.95608]
[1730464523198,3.95541,2528.2,2527.7,3.95608]
[1730464523422,0.7081,2528.4,2527.7,0.07912213]
[1730464523727,3.95531,2528.3,2527.8,3.95597]
[1730464523928,3.95531,2528.3,2527.8,3.95592]
[1730464524090,7.91064,2528.3,2527.8,3.95592]
[1730464524419,4.86655515,2528.3,2527.8,3.95592]
[1730464524789,4.86655515,2528.3,2527.9,3.95584]
[1730464525126,4.66324,2528.4,2527.9,3.95577]
[1730464525301,4.66324,2528.4,2527.9,3.95581]
[1730464525497,0.7081,2528.4,2527.9,3.95581]
[1730464525696,3.95554,2528.1,2527.5,4.7802]
[1730464525997,3.95551,2528.2,2527.6,3.95622]
[1730464526215,3.95561,2528.1,2527.6,3.95622]
[1730464526525,0.466361,2528.2,2527.2,0.7966]
[1730464526821,3.95569,2528.1,2527.6,3.95624]
[1730464527027,4.421761,2528.2,2527.7,3.95614]
[1730464527185,4.421761,2528.2,2527.6,3.95624]
[1730464527514,3.95564,2528.1,2527.6,3.95624]
[1730464528409,3.95616,2527.8,2527.3,4.69498306]
[1730464528612,0.8377401,2528.0,2527.4,3.95661]
[1730464528817,7.91211,2527.8,2527.3,3.95665]
[1730464529017,3.95616,2527.7,2527.3,3.95665]
[1730464529536,3.95616,2527.7,2527.2,4.75348]
[1730464529692,3.95619,2527.7,2527.2,4.75348]
[1730464530564,3.95619,2527.7,2527.3,3.95678]
[1730464532210,3.95619,2527.7,2527.4,0.08525131]
[1730464532414,3.95598,2527.9,2527.4,0.08525131]
[1730464532593,3.95613,2527.8,2527.3,3.95676]
[1730464532790,3.95613,2527.8,2527.5,0.07958675]
[1730464532989,3.95613,2527.8,2527.4,0.07966594]
[1730464533191,0.7081,2527.7,2526.8,0.821]
[1730464533493,3.95685,2527.3,2526.8,4.77846]
[1730464533693,3.95685,2527.3,2526.4,8.85121913]
[1730464533694,0.395685,2527.3,2526.9,0.07865624]
[1730464533948,3.95737,2527.0,2526.9,0.07865624]
[1730464534233,3.95721,2527.1,2526.6,3.95775]
[1730464534450,3.95734,2527.0,2526.6,3.95775]
[1730464534640,3.95734,2527.0,2526.7,0.0761029]
[1730464534832,3.95753,2526.9,2526.7,0.0761029]
[1730464535043,3.95757,2526.8,2526.7,0.0761029]
[1730464535348,3.95795,2526.6,2526.1,0.7963]
[1730464535566,3.95806,2526.5,2525.8,4.75035]
[1730464535721,3.95784,2526.7,2526.2,3.95844]
[1730464535907,3.95784,2526.7,2526.2,3.95839]
[1730464536108,3.95784,2526.7,2526.3,3.95834]
[1730464536355,0.791455,2527.0,2526.3,3.95835]
[1730464536356,3.95766,2526.8,2526.3,3.95835]
[1730464536649,4.748775,2527.0,2526.5,7.91589]
[1730464536650,3.95732,2527.0,2526.5,7.91589]
[1730464536850,3.95732,2527.0,2526.5,3.95793]
[1730464537349,3.95742,2526.9,2526.5,3.95793]
[1730464537555,3.95732,2527.0,2526.5,3.95793]
[1730464537713,3.95732,2527.0,2526.5,7.91589]
[1730464537913,3.95732,2527.0,2526.6,3.95786]
[1730464538129,3.95732,2527.0,2526.5,7.91588]
[1730464538628,3.95714,2527.1,2526.6,3.95786]
[1730464538939,3.95714,2527.1,2526.6,7.91565]
[1730464539119,3.95714,2527.1,2526.6,3.95779]
[1730464539451,7.91401,2527.2,2526.7,3.95762]
[1730464539751,3.95697,2527.2,2526.7,3.95773]
[1730464540054,3.95645,2527.6,2527.1,3.95703]
[1730464540215,3.95645,2527.6,2527.2,3.95691]
[1730464540413,3.95645,2527.6,2527.2,3.95694]
[1730464540414,3.95635,2527.6,2527.2,3.95694]
[1730464540850,3.95635,2527.6,2526.8,3.95754]
[1730464540851,3.95655,2527.5,2526.8,3.95745]
[1730464541024,3.95685,2527.3,2526.8,8.70984]
[1730464541349,3.95685,2527.3,2526.9,3.95734]
[1730464541735,3.9571,2527.1,2526.8,0.7949]
[1730464541952,3.9571,2527.1,2526.5,1.35522373]
[1730464542154,3.95696,2527.2,2526.8,3.95756]
[1730464542551,3.95696,2527.2,2526.9,0.07353986]
[1730464543056,3.95681,2527.3,2526.9,0.07353986]
[1730464543273,0.7081,2527.4,2526.9,4.03087986]
[1730464543572,3.95657,2527.5,2527.0,3.95723]
[1730464543734,3.0,2527.8,2527.2,3.95688]
[1730464543935,3.95625,2527.7,2527.2,3.95688]
[1730464544230,3.95586,2527.9,2527.5,3.95644]
[1730464544424,3.95586,2527.9,2527.3,0.07322301]
[1730464544425,3.95585,2527.9,2527.3,0.1523528]
[1730464544658,3.95609,2527.8,2527.6,0.07298544]
[1730464544868,3.95586,2527.9,2527.3,3.95675]
[1730464544869,3.95616,2527.7,2527.3,3.95675]
[1730464545171,3.95603,2527.8,2527.3,3.95675]
[1730464545339,3.95628,2527.7,2527.1,4.71208]
[1730464545544,3.95595,2527.9,2527.1,0.755]
[1730464545731,3.95595,2527.9,2527.5,3.95647]
[1730464546130,3.83092741,2528.1,2527.6,3.95625]
[1730464546433,3.83092741,2528.1,2527.7,3.95608]
[1730464546628,7.78652741,2528.1,2527.6,3.95624]
[1730464546938,7.78652741,2528.1,2527.7,3.95607]
[1730464547166,3.83092741,2528.1,2527.7,3.95607]
[1730464547468,3.83092741,2528.1,2527.8,3.956]
[1730464547642,3.83092741,2528.1,2527.7,0.7644]
[1730464547844,3.83092741,2528.1,2527.8,3.95592]
[1730464548372,3.83092741,2528.1,2527.7,1.31033831]
[1730464548373,3.83092741,2528.1,2528.0,3.95569]
[1730464548525,3.83092741,2528.1,2527.9,3.95582]
[1730464548526,3.95499,2528.5,2528.1,3.95552]
[1730464548939,3.95484,2528.6,2528.2,3.95529]
[1730464549169,3.95484,2528.6,2528.0,3.95558]
[1730464549388,3.95461,2528.7,2528.2,3.95529]
[1730464549675,3.95454,2528.8,2528.3,3.95522]
[1730464549676,3.95445,2528.8,2528.3,3.95522]
[1730464549875,4.66247,2528.9,2528.3,4.76542]
[1730464550049,0.50186119,2529.1,2528.4,4.03416326]
[1730464550050,3.95414,2529.0,2528.4,4.03416326]
[1730464550253,3.95414,2529.0,2528.6,3.95474]
[1730464550455,7.90805,2529.1,2528.6,3.95474]
[1730464550753,3.95399,2529.1,2528.6,3.95474]
[1730464551345,3.95399,2529.1,2528.6,3.95467]
[1730464551785,3.95416,2529.0,2528.6,4.03374075]
[1730464552077,3.83092741,2529.2,2528.8,3.95443]
[1730464552235,3.83092741,2529.2,2528.9,3.95426]
[1730464552440,3.95366,2529.4,2528.9,7.90848]
[1730464552673,3.95313,2529.7,2528.9,4.7101]
[1730464552885,3.95313,2529.7,2529.0,3.95401]
[1730464552886,3.95336,2529.5,2529.0,3.95401]
[1730464553175,4.814534,2529.7,2529.1,3.95397]
[1730464553176,3.9532,2529.6,2529.1,3.95397]
[1730464553475,3.95336,2529.5,2529.1,3.95397]
[1730464553678,3.95336,2529.5,2528.9,4.71006]
[1730464553894,4.814564,2529.7,2529.0,3.95413]
[1730464554177,4.814444,2529.7,2529.1,3.9539]
[1730464554341,0.861404,2529.7,2528.9,0.7559]
[1730464554542,3.95358,2529.4,2528.9,0.7559]
[1730464554738,7.90717,2529.4,2528.9,0.7559]
[1730464554976,3.95368,2529.3,2528.9,0.7559]
[1730464555181,3.95358,2529.4,2528.9,4.71017]
[1730464555382,7.90721,2529.4,2528.9,4.71017]
[1730464555591,3.95358,2529.4,2528.9,4.71017]
[1730464555881,3.95374,2529.3,2528.9,0.7559]
[1730464556581,3.95366,2529.3,2528.9,0.7559]
[1730464556746,3.95358,2529.4,2528.9,0.7559]
[1730464556747,3.95384,2529.2,2528.9,0.7559]
[1730464556960,3.95408,2529.1,2528.6,4.75427]
[1730464557265,3.95431,2528.9,2528.6,0.7996]
[1730464557483,3.95431,2528.9,2528.7,0.06931776]
[1730464557977,3.95444,2528.8,2528.4,3.95505]
[1730464558183,3.95431,2528.9,2528.8,0.06923865]
[1730464558385,3.95431,2528.9,2528.4,3.95505]
[1730464558694,3.95431,2528.9,2527.0,6.21285708]
[1730464558695,8.365996,2528.9,2528.8,0.06923865]
[1730464558893,3.95563,2528.1,2527.7,0.7996]
[1730464559205,0.55,2528.5,2527.8,0.06540492]
[1730464559498,3.95585,2527.9,2527.8,0.06540492]
[1730464559706,3.95585,2527.9,2527.1,4.71528]
[1730464559707,3.95634,2527.6,2527.1,4.71528]
[1730464559854,3.95634,2527.6,2527.1,0.7583]
[1730464560208,0.7081,2527.8,2526.6,0.8253]
[1730464560357,3.0,2527.6,2526.6,0.8253]
[1730464560562,3.0,2527.5,2527.0,3.95714]
[1730464560889,3.95664,2527.4,2526.9,3.9574]
[1730464561090,3.95688,2527.3,2526.7,8.65261306]
[1730464561295,3.95707,2527.2,2526.7,4.69498306]
[1730464561500,3.95707,2527.2,2526.6,0.8253]
[1730464561671,3.95733,2527.0,2526.6,0.8253]
[1730464561858,3.95711,2527.1,2526.6,4.78316]
[1730464562059,3.95698,2527.2,2526.7,4.69498306]
[1730464562293,3.95711,2527.1,2526.7,4.69498306]
[1730464563009,3.95634,2527.6,2526.6,0.8253]
[1730464563010,3.95758,2526.8,2526.6,0.8253]
[1730464563362,3.95744,2526.9,2526.6,0.8253]
[1730464563793,3.95737,2527.0,2526.6,0.8253]
[1730464564311,3.9571,2527.1,2526.6,6.12681931]
[1730464564606,3.95733,2527.0,2526.6,0.8253]
[1730464564763,3.95742,2526.9,2526.3,0.8919683]
[1730464564962,3.9578,2526.7,2526.3,0.8919683]
[1730464565268,3.9579,2526.6,2526.3,0.0593683]
[1730464565861,3.9581,2526.5,2526.3,0.0593683]
[1730464566366,3.9579,2526.6,2526.3,0.0593683]
[1730464566684,3.95719,2527.1,2526.4,8.65309306]
[1730464566884,3.95719,2527.1,2526.6,3.95779]
[1730464567075,3.95719,2527.1,2526.6,7.91558]
[1730464567262,3.95719,2527.1,2526.6,3.95779]
[1730464567609,3.95719,2527.1,2526.6,4.72569]
[1730464567810,3.95688,2527.3,2526.7,4.69498306]
[1730464567967,3.95688,2527.3,2526.8,7.91504]
[1730464568300,3.95642,2527.6,2527.1,3.957]
[1730464568462,3.95609,2527.8,2527.3,3.9567]
[1730464568668,3.95609,2527.8,2527.3,3.95667]
[1730464568866,3.95577,2528.0,2527.5,3.95645]
[1730464569063,0.7081,2528.1,2527.4,0.0791253]
[1730464569290,3.95555,2528.1,2527.6,3.9563]
[1730464569497,3.95572,2528.0,2527.5,3.95642]
[1730464569810,3.95554,2528.1,2527.6,3.95631]
[1730464570098,3.95602,2527.8,2527.4,0.55491084]
[1730464570406,3.95636,2527.6,2527.0,8.65215306]
[1730464570697,0.7081,2528.0,2526.4,3.95813]
[1730464570698,3.95707,2527.2,2526.7,4.69498306]
[1730464570865,0.7081,2527.3,2526.6,0.795]
[1730464571065,3.95765,2526.8,2526.3,4.7729183]
[1730464571371,3.95765,2526.8,2526.3,0.8145683]
[1730464571372,3.95773,2526.7,2526.3,0.8145683]
[1730464571589,0.7081,2527.3,2526.8,3.95752]
[1730464571774,3.0,2527.5,2526.4,4.69498306]
[1730464571997,3.95703,2527.2,2526.7,3.95772]
[1730464572190,3.95715,2527.1,2526.6,3.95787]
[1730464572387,3.95672,2527.4,2526.8,0.06475201]
[1730464572620,3.9565,2527.5,2527.0,9.44764306]
[1730464572780,4.66443,2527.6,2527.0,5.49048306]
[1730464572781,0.7081,2527.6,2527.0,5.49048306]
[1730464572986,7.91224,2527.8,2527.1,0.69269971]
[1730464573187,0.7081,2527.9,2527.3,4.69498306]
[1730464573384,3.95581,2528.0,2527.5,3.9564]
[1730464573719,3.95555,2528.1,2527.6,3.95618]
[1730464573879,3.95555,2528.1,2527.6,7.97647876]
[1730464574219,4.53902741,2528.5,2527.8,3.95592]
[1730464574518,3.95507,2528.4,2527.9,8.65082306]
[1730464574813,3.95525,2528.3,2527.9,0.06378961]
[1730464575695,7.91059,2528.3,2527.9,0.06378961]
[1730464575892,3.83092741,2528.5,2527.9,0.06378961]
[1730464575893,7.78593741,2528.5,2527.9,0.06378961]
[1730464576091,7.78593741,2528.5,2527.9,4.83788664]
[1730464576092,3.83092741,2528.5,2527.9,4.83788664]
[1730464576308,3.83092741,2528.5,2527.9,5.34015569]
[1730464576514,7.78594741,2528.5,2528.0,4.01927968]
[1730464576890,3.83092741,2528.5,2528.2,3.95529]
[1730464577107,4.66262,2528.8,2528.3,3.95509]
[1730464577283,3.95452,2528.8,2528.3,4.01841759]
[1730464577487,3.95468,2528.7,2528.3,0.06332759]
[1730464577681,3.95475,2528.6,2528.3,0.06332759]
[1730464577920,3.95452,2528.8,2528.2,8.65036306]
[1730464577921,3.95461,2528.7,2528.2,8.65036306]
[1730464578218,3.95477,2528.6,2528.3,0.06332759]
[1730464578390,3.95477,2528.6,2528.2,4.69498306]
[1730464578730,3.95477,2528.6,2528.4,0.06324846]
[1730464578890,3.95477,2528.6,2528.3,0.06332759]
[1730464579228,3.95456,2528.8,2528.4,0.06324846]
[1730464579433,3.95468,2528.7,2528.2,8.65035306]
[1730464579600,3.95468,2528.7,2528.5,0.06316933]
[1730464579792,3.95456,2528.8,2528.2,9.77866533]
[1730464580003,3.95478,2528.6,2528.2,5.08368227]
[1730464580323,3.95478,2528.6,2528.2,1.12831227]
[1730464580642,3.95478,2528.6,2528.2,5.08367227]
[1730464583438,3.95456,2528.8,2528.3,0.8271]
[1730464583816,7.90912,2528.8,2528.3,4.78232]
[1730464584132,3.95456,2528.8,2528.3,4.78232]
[1730464584336,1.69719497,2528.8,2528.0,4.72731]
[1730464584533,3.95498,2528.5,2528.0,4.72731]
[1730464584739,3.95492,2528.5,2528.0,4.72727]
[1730464585102,3.95454,2528.8,2528.3,3.95515]
[1730464585352,3.0,2528.9,2528.6,3.95464]
[1730464585675,3.95344,2529.5,2528.6,3.95464]
[1730464585676,3.95352,2529.4,2528.8,4.69498306]
[1730464585806,3.95352,2529.4,2528.9,3.95427]
[1730464585807,7.90712,2529.4,2528.9,3.95427]
[1730464586004,3.95352,2529.4,2528.9,3.95427]
[1730464586321,7.90712,2529.4,2528.9,3.9542]
[1730464586516,0.7081,2529.5,2528.8,4.69498306]
[1730464586700,3.9537,2529.3,2528.9,3.9542]
[1730464586905,3.95378,2529.3,2528.8,8.64934306]
[1730464587230,3.95378,2529.3,2528.9,0.0622837]
[1730464587613,3.95391,2529.2,2528.9,0.0622837]
[1730464587930,3.95378,2529.3,2528.9,0.0622837]
[1730464588641,3.95384,2529.2,2528.9,0.0622837]
[1730464589012,3.95378,2529.3,2528.9,0.0622837]
[1730464589507,3.95353,2529.4,2528.9,4.0164637]
[1730464589735,3.95368,2529.3,2528.9,4.0164637]
[1730464589913,3.95382,2529.2,2528.9,0.0622837]
[1730464591171,3.95413,2529.0,2528.9,0.0622837]
[1730464591493,3.95485,2528.6,2528.2,3.95536]
[1730464591642,3.95485,2528.6,2528.2,8.65034306]
[1730464591847,3.95485,2528.6,2528.3,0.05443137]
[1730464592081,3.95485,2528.6,2528.2,8.65034306]
[1730464592250,5.21347452,2529.0,2528.4,0.05435224]
[1730464592454,5.21347452,2529.0,2528.2,4.69498306]
[1730464592455,3.52134245,2528.9,2528.2,4.69498306]
[1730464592662,3.95482,2528.6,2528.5,0.05427311]
[1730464593354,3.95482,2528.6,2528.2,4.69498306]
[1730464593556,3.95482,2528.6,2528.5,0.05436392]
[1730464593758,0.790947,2528.6,2528.0,0.7519]
[1730464593947,3.95463,2528.7,2528.0,0.7519]
[1730464594148,7.91066,2528.3,2527.9,4.69498306]
[1730464594368,3.95533,2528.3,2528.1,0.05468047]
[1730464594651,3.95508,2528.4,2528.2,0.05467743]
[1730464594855,3.95508,2528.4,2528.0,3.95569]
[1730464595049,7.91006,2528.5,2528.3,0.05459829]
[1730464595249,7.91006,2528.5,2528.0,3.95569]
[1730464595553,3.95503,2528.5,2528.4,0.05451916]
[1730464595881,7.91004,2528.5,2528.0,3.9556]
[1730464596061,7.91004,2528.5,2528.4,0.05270625]
[1730464596261,7.91004,2528.5,2527.9,8.65081306]
[1730464596262,7.91004,2528.5,2528.0,3.95569]
[1730464596481,3.95501,2528.5,2528.4,0.05269277]
[1730464596681,3.52134245,2528.9,2528.2,4.69498306]
[1730464596682,3.95475,2528.7,2528.2,4.69498306]
[1730464596997,3.95446,2528.8,2528.4,0.05269277]
[1730464597187,3.95446,2528.8,2528.3,4.77386]
[1730464597188,3.95446,2528.8,2528.3,4.82661191]
[1730464597507,3.95486,2528.6,2528.5,0.05261364]
[1730464597791,7.66223,2529.0,2528.5,0.05261364]
[1730464597792,3.95428,2528.9,2528.5,0.05261364]
[1730464597954,3.95446,2528.8,2528.5,0.05261364]
[1730464598307,3.95468,2528.7,2528.6,0.05253452]
[1730464598708,7.90903,2528.8,2528.1,0.07910233]
[1730464599007,3.95467,2528.7,2528.2,3.95538]
[1730464599172,3.95467,2528.7,2528.2,4.00647063]
[1730464599372,3.95445,2528.8,2528.2,4.00639063]
[1730464599579,3.95445,2528.8,2528.3,3.95515]
[1730464599818,3.95444,2528.8,2528.2,8.70137369]
[1730464600114,3.95476,2528.6,2528.4,0.05093235]
[1730464600299,7.90903,2528.8,2528.3,4.00620149]
[1730464600499,3.95444,2528.8,2528.5,0.05085322]
[1730464600673,3.95444,2528.8,2528.4,0.05093235]
[1730464600870,3.95444,2528.8,2528.3,3.95519]
[1730464601085,3.95444,2528.8,2528.5,0.05085322]
[1730464601313,3.95444,2528.8,2528.4,0.05093235]
[1730464601613,3.95444,2528.8,2528.6,0.0507741]
[1730464601770,3.95444,2528.8,2528.5,0.05085322]
[1730464601974,3.95444,2528.8,2528.3,3.95514]
[1730464602170,3.95444,2528.8,2528.4,0.05093235]
[1730464602412,7.90849,2529.0,2528.4,4.00587235]
[1730464602615,3.95389,2529.2,2528.7,3.95446]
[1730464602906,3.95351,2529.4,2528.8,8.64933306]
[1730464603110,3.95351,2529.4,2528.9,3.95428]
[1730464603514,3.95351,2529.4,2529.0,0.04875594]
[1730464603810,3.95367,2529.3,2529.0,0.04875594]
[1730464604032,3.95384,2529.2,2529.0,0.04875594]
[1730464604308,4.744591,2529.2,2528.6,4.74799]
[1730464604539,3.95374,2529.3,2529.1,0.04867684]
[1730464604679,3.95374,2529.3,2528.8,3.95437]
[1730464604680,3.95374,2529.3,2528.9,3.95421]
[1730464604880,3.95354,2529.4,2529.2,0.04859776]
[1730464605104,3.95354,2529.4,2528.9,3.95421]
[1730464605299,3.95354,2529.4,2529.3,0.04851868]
[1730464605576,4.87016345,2529.4,2529.3,0.04851868]
[1730464605780,4.87016345,2529.4,2528.9,3.9542]
[1730464606178,3.95369,2529.3,2529.0,0.04875594]
[1730464606679,3.95383,2529.2,2529.0,0.04875594]
[1730464606881,0.91662345,2529.4,2528.7,3.95449]
[1730464607083,3.95366,2529.3,2529.1,0.04870138]
[1730464607386,4.8911548,2529.3,2528.8,3.95444]
[1730464607595,3.95347,2529.5,2528.8,4.77406291]
[1730464607790,3.7081,2529.6,2528.8,4.77406291]
[1730464607791,3.95319,2529.6,2529.1,3.9539]
[1730464607991,3.95303,2529.8,2529.2,3.95381]
[1730464608292,3.95329,2529.6,2529.3,0.04854321]
[1730464608505,3.9532,2529.6,2529.0,3.95408]
[1730464608712,3.95335,2529.5,2529.4,0.04846414]
[1730464609016,3.95335,2529.5,2528.9,4.03320697]
[1730464609017,3.95359,2529.4,2528.9,4.03320697]
[1730464609180,3.95359,2529.4,2529.0,3.95412]
[1730464609993,3.95367,2529.3,2528.8,8.64927306]
[1730464610535,0.55119452,2529.8,2527.8,4.98375558]
[1730464610536,0.8314,2532.5,2530.1,0.55]
[1730464610741,0.8314,2532.5,2531.6,3.95007]
[1730464610896,0.8314,2532.5,2531.6,4.02905846]
[1730464611099,4.77967,2532.8,2532.4,4.69498306]
[1730464611281,4.77967,2532.8,2532.7,4.69498306]
[1730464611485,4.77967,2532.8,2532.2,4.69498306]
[1730464611680,0.872772,2532.7,2532.2,3.94911]
[1730464611985,0.8314,2532.8,2532.2,4.7739601]
[1730464612184,3.94782,2533.1,2532.3,3.94888]
[1730464612691,0.8232,2533.2,2532.3,3.94888]
[1730464613183,6.94788,2533.1,2532.3,3.94888]
[1730464613379,6.94788,2533.1,2532.2,3.94912]
[1730464613611,0.777108,2533.0,2532.2,3.94912]
[1730464613814,4.724998,2533.0,2532.2,3.94912]
[1730464614522,4.69498306,2532.7,2532.3,3.94895]
[1730464615690,4.725008,2533.0,2532.1,4.7319]
[1730464615691,4.69498306,2532.4,2532.1,4.7319]
[1730464615992,4.69498306,2532.4,2532.2,3.94907]
[1730464616421,4.69498306,2532.4,2532.1,4.7319]
[1730464616723,5.16448137,2532.4,2532.0,3.94942]
[1730464617016,5.16448137,2532.4,2531.9,3.9495]
[1730464617017,4.69498306,2532.0,2531.9,3.9495]
[1730464618225,4.69498306,2532.0,2531.3,0.7895]
[1730464618431,3.94922,2532.2,2531.5,3.95013]
[1730464618630,4.86057514,2532.2,2531.5,3.95013]
[1730464619133,3.94978,2531.8,2531.5,0.06473522]
[1730464619300,4.77178,2531.8,2531.5,0.06473522]
[1730464619506,0.477178,2531.7,2531.1,3.95073]
[1730464619711,4.69498306,2531.2,2530.9,7.90208]
[1730464619917,4.69498306,2531.2,2531.1,3.95085]
[1730464621115,4.69498306,2531.2,2530.9,3.95102]
[1730464621297,4.69498306,2531.2,2530.8,3.95128]
[1730464621495,4.69498306,2531.2,2530.7,3.95138]
[1730464621730,4.69498306,2531.2,2531.1,3.95085]
[1730464622994,4.69498306,2531.2,2530.8,3.95123]
[1730464623296,8.64578306,2531.2,2530.6,3.95157]
[1730464623515,8.64578306,2531.2,2530.5,3.95167]
[1730464623516,4.69498306,2530.9,2530.5,3.95167]
[1730464623720,4.69498306,2530.9,2530.4,3.95186]
[1730464624037,4.69498306,2530.9,2530.6,3.95161]
[1730464624242,4.69498306,2531.2,2530.8,3.95122]
[1730464624394,4.69498306,2531.2,2531.1,3.95085]
[1730464625343,4.69498306,2531.2,2530.5,3.95178]
[1730464625344,8.64567306,2531.2,2530.5,3.95178]
[1730464625497,0.005,2533.8,2532.6,0.7968]
[1730464625701,0.005,2533.8,2533.7,3.94679]
[1730464625898,0.1246699,2534.2,2533.7,3.94679]
[1730464625899,0.53634214,2534.2,2534.1,3.94617]
[1730464626293,0.1246699,2534.2,2534.1,3.94617]
[1730464626536,0.02,2535.0,2534.6,3.94531]
[1730464626739,0.02,2535.0,2534.9,3.94492]
[1730464627041,0.02,2535.0,2534.6,4.76249]
[1730464627042,0.02,2535.0,2534.8,3.94508]
[1730464627208,0.02,2535.0,2534.9,9.13616379]
[1730464628193,0.02,2535.0,2534.9,10.09173383]
[1730464628399,2.02682456,2535.4,2535.3,3.9443]
[1730464628600,2.02682456,2535.4,2535.3,5.19124379]
[1730464629299,2.02682456,2535.4,2535.3,9.13554379]
[1730464629531,2.02682456,2535.4,2535.3,5.19124379]
[1730464630241,2.02682456,2535.4,2535.3,9.17142435]
[1730464630445,2.02682456,2535.4,2535.3,9.13554379]
[1730464630920,2.02682456,2535.4,2535.3,5.19124379]
[1730464631235,2.02682456,2535.4,2535.3,9.13554379]
[1730464631535,2.02682456,2535.4,2534.6,0.8171]
[1730464631832,2.02682456,2535.4,2535.3,3.9443]
[1730464632046,2.02682456,2535.4,2535.1,3.9445]
[1730464632249,2.02682456,2535.4,2535.3,3.9443]
[1730464632425,2.02682456,2535.4,2535.1,3.94449]
[1730464632629,2.02682456,2535.4,2535.2,3.94443]
[1730464632829,2.02682456,2535.4,2535.0,3.94474]
[1730464633029,2.02682456,2535.4,2534.9,3.94487]
[1730464633344,2.02682456,2535.4,2535.0,0.0788837]
[1730464633516,2.02682456,2535.4,2534.9,3.94487]
[1730464633718,2.82324698,2535.4,2534.8,3.94506]
[1730464634254,2.82324698,2535.4,2534.9,3.9449]
[1730464634629,6.76741698,2535.4,2534.7,3.94513]
[1730464634832,6.76741698,2535.4,2534.9,5.19124379]
[1730464634833,2.02682456,2535.4,2534.9,5.19124379]
[1730464635039,2.02682456,2535.4,2535.1,3.9446]
[1730464635351,2.02682456,2535.4,2535.0,4.02354304]
[1730464635556,2.02682456,2535.4,2535.3,4.7636]
[1730464637052,2.02682456,2535.4,2535.3,5.634403]
[1730464637353,2.02682456,2535.4,2535.3,4.7636]
[1730464637555,2.02682456,2535.4,2535.3,3.9443]
[1730464640251,2.02682456,2535.4,2535.3,4.02317473]
[1730464640779,5.0,2536.1,2535.7,3.94363]
[1730464640963,5.0,2536.1,2535.8,0.07886188]
[1730464641277,5.0,2536.1,2535.6,3.94378]
[1730464641478,5.0,2536.1,2536.0,3.94321]
[1730464641662,5.0,2536.1,2535.9,3.94335]